fUSD/lending_fUSD_20240324
["ID","MTS","AMOUNT","RATE_DAILY","PERIOD"]
[320343767,1711313483914,-500.0,0.00019726,2]
[320343768,1711313483924,-500.0,0.00019726,2]
[320343769,1711313483934,-500.0,0.00019726,2]
[320343770,1711313483944,-500.0,0.00019726,2]
[320343771,1711313483954,-500.0,0.00019726,2]
[320343772,1711313483964,-500.0,0.00019726,2]
[320343773,1711313483974,-500.0,0.00019726,2]
[320343774,1711313483984,-500.0,0.00019726,2]
[320343775,1711313483994,-500.0,0.00019726,2]
[320343776,1711313484003,-500.0,0.00019726,2]
[320343777,1711313484014,-541.33,0.00019726,2]
[320343778,1711313484024,-639.23,0.00019726,2]
[320343779,1711313484033,-500.0,0.00019726,2]
[320343780,1711313484043,-500.0,0.00019726,2]
[320343781,1711313484053,-331.56633638,0.00019726,2]
[320343782,1711313484063,-526.61,0.00019726,2]
[320343783,1711313484073,-583.95,0.00019726,2]
[320343784,1711313484082,-610.36,0.00019726,2]
[320343785,1711313484093,-500.0,0.00019726,2]
[320343786,1711313484102,-500.0,0.00019726,2]
[320343787,1711313484112,-500.0,0.00019726,2]
[320343788,1711313484124,-500.0,0.00019726,2]
[320343789,1711313484133,-500.69391845,0.00019726,2]
[320343790,1711313484143,-500.0,0.00019726,2]
[320343791,1711313484152,-500.0,0.00019726,2]
[320343792,1711313484162,-849.68,0.00019726,2]
[320343793,1711313484171,-500.0,0.00019726,2]
[320343794,1711313484181,-500.0,0.00019726,2]
[320343795,1711313484190,-500.0,0.00019726,2]
[320343796,1711313484202,-212.52815498,0.00019726,2]
[320343797,1711313484212,-500.0,0.00019726,2]
[320343798,1711313484223,-500.0,0.00019726,2]
[320343799,1711313484232,-500.0,0.00019726,2]
[320343800,1711313484242,-500.0,0.00019726,2]
[320343801,1711313484251,-515.02,0.00019726,2]
[320343802,1711313484261,-500.0,0.00019726,2]
[320343803,1711313484271,-500.0,0.00019726,2]
[320343804,1711313484281,-500.0,0.00019726,2]
[320343805,1711313484291,-294.37737961,0.00019726,2]
[320343806,1711313484300,-500.0,0.00019726,2]
[320343807,1711313484310,-584.17,0.00019726,2]
[320343808,1711313484320,-500.0,0.00019726,2]
[320343809,1711313484329,-500.0,0.00019726,2]
[320343810,1711313484339,-500.0,0.00019726,2]
[320343811,1711313484349,-500.0,0.00019726,2]
[320343812,1711313484358,-1127.63,0.00019726,2]
[320343813,1711313484368,-611.61,0.00019726,2]
[320343814,1711313484377,-500.0,0.00019726,2]
[320343815,1711313484387,-500.0,0.00019726,2]
[320343816,1711313484396,-501.05765416,0.00019726,2]
[320343817,1711313484405,-500.0,0.00019726,2]
[320343818,1711313484415,-896.19,0.00019726,2]
[320343819,1711313484424,-500.0,0.00019726,2]
[320343820,1711313484434,-500.0,0.00019726,2]
[320343821,1711313484444,-500.0,0.00019726,2]
[320343822,1711313484453,-500.0,0.00019726,2]
[320343823,1711313484463,-500.0,0.00019726,2]
[320343824,1711313484472,-501.06688364,0.00019726,2]
[320343825,1711313484481,-500.0,0.00019726,2]
[320343826,1711313484490,-500.0,0.00019726,2]
[320343827,1711313484500,-500.0,0.00019726,2]
[320343828,1711313484510,-500.0,0.00019726,2]
[320343829,1711313484519,-500.0,0.00019726,2]
[320343830,1711313484528,-527.61,0.00019726,2]
[320343831,1711313484538,-742.12,0.00019726,2]
[320343832,1711313484547,-500.0,0.00019726,2]
[320343833,1711313484558,-500.0,0.00019726,2]
[320343834,1711313484568,-500.0,0.00019726,2]
[320343835,1711313484577,-500.0,0.00019726,2]
[320343836,1711313484586,-500.0,0.00019726,2]
[320343837,1711313484596,-500.0,0.00019726,2]
[320343838,1711313484605,-911.54,0.00019726,2]
[320343839,1711313484615,-500.0,0.00019726,2]
[320343840,1711313484624,-1316.76,0.00019726,2]
[320343841,1711313484634,-500.0,0.00019726,2]
[320343842,1711313484644,-500.0,0.00019726,2]
[320343843,1711313484653,-151.0,0.00019726,2]
[320343844,1711313484663,-151.0,0.00019726,2]
[320343845,1711313484673,-365.79005968,0.00019726,2]
[320343846,1711313484682,-151.0,0.00019726,2]
[320343847,1711313484692,-151.0,0.00019726,2]
[320343848,1711313484702,-500.0,0.00019726,2]
[320343849,1711313484711,-761.21,0.00019726,2]
[320343850,1711313484721,-500.0,0.00019726,2]
[320343851,1711313484730,-500.0,0.00019726,2]
[320343852,1711313484740,-500.0,0.00019726,2]
[320343853,1711313484750,-500.0,0.00019726,2]
[320343854,1711313484761,-559.23,0.00019726,2]
[320343855,1711313484774,-500.0,0.00019726,2]
[320343856,1711313484783,-500.0,0.00019726,2]
[320343857,1711313484792,-500.0,0.00019726,2]
[320343858,1711313484802,-500.0,0.00019726,2]
[320343859,1711313484812,-503.07406002,0.00019726,2]
[320343860,1711313484821,-797.65,0.00019726,2]
[320343861,1711313484831,-500.0,0.00019726,2]
[320343862,1711313484842,-500.0,0.00019726,2]
[320343863,1711313484851,-339.52188585,0.00019726,2]
[320343864,1711313484860,-522.46,0.00019726,2]
[320343865,1711313484870,-500.0,0.00019726,2]
[320343866,1711313484880,-500.0,0.00019726,2]
[320343867,1711313484889,-833.6,0.00019726,2]
[320343868,1711313484899,-500.0,0.00019726,2]
[320343869,1711313484908,-500.0,0.00019726,2]
[320343870,1711313484918,-500.0,0.00019726,2]
[320343871,1711313484927,-500.0,0.00019726,2]
[320343872,1711313484936,-500.0,0.00019726,2]
[320343873,1711313484947,-500.0,0.00019726,2]
[320343874,1711313484956,-501.55647364,0.00019726,2]
[320343875,1711313484966,-777.7,0.00019726,2]
[320343876,1711313484975,-500.0,0.00019726,2]
[320343877,1711313484984,-709.1,0.00019726,2]
[320343878,1711313484994,-500.0,0.00019726,2]
[320343879,1711313485004,-500.0,0.00019726,2]
[320343880,1711313485014,-730.94,0.00019726,2]
[320343881,1711313485023,-500.0,0.00019726,2]
[320343882,1711313485033,-501.50178092,0.00019726,2]
[320343883,1711313485042,-500.0,0.00019726,2]
[320343884,1711313485052,-500.0,0.00019726,2]
[320343885,1711313485062,-500.0,0.00019726,2]
[320343886,1711313485071,-500.0,0.00019726,2]
[320343887,1711313485081,-151.0,0.00019726,2]
[320343888,1711313485090,-151.0,0.00019726,2]
[320343889,1711313485101,-615.9595555,0.00019726,2]
[320343890,1711313485110,-580.62,0.00019726,2]
[320343891,1711313485120,-500.0,0.00019726,2]
[320343892,1711313485130,-500.0,0.00019726,2]
[320343893,1711313485145,-502.10784979,0.00019726,2]
[320343894,1711313485158,-714.68,0.00019726,2]
[320343895,1711313485167,-500.0,0.00019726,2]
[320343896,1711313485178,-500.0,0.00019726,2]
[320343897,1711313485187,-500.0,0.00019726,2]
[320343898,1711313485206,-500.0,0.00019726,2]
[320343899,1711313485216,-500.0,0.00019726,2]
[320343900,1711313485226,-500.0,0.00019726,2]
[320343901,1711313485236,-500.0,0.00019726,2]
[320343902,1711313485246,-500.0,0.00019726,2]
[320343903,1711313485255,-500.0,0.00019726,2]
[320343904,1711313485265,-500.0,0.00019726,2]
[320343905,1711313485276,-500.0,0.00019726,2]
[320343906,1711313485286,-500.0,0.00019726,2]
[320343907,1711313485296,-500.0,0.00019726,2]
[320343908,1711313485306,-504.75083607,0.00019726,2]
[320343909,1711313485316,-500.0,0.00019726,2]
[320343910,1711313485326,-500.0,0.00019726,2]
[320343911,1711313485336,-500.0,0.00019726,2]
[320343912,1711313485346,-500.0,0.00019726,2]
[320343913,1711313485356,-500.0,0.00019726,2]
[320343914,1711313485365,-500.0,0.00019726,2]
[320343915,1711313485375,-501.04285867,0.00019726,2]
[320343916,1711313485385,-500.0,0.00019726,2]
[320343917,1711313485394,-500.0,0.00019726,2]
[320343918,1711313485404,-500.0,0.00019726,2]
[320343919,1711313485413,-500.0,0.00019726,2]
[320343920,1711313485423,-500.0,0.00019726,2]
[320343921,1711313485433,-500.0,0.00019726,2]
[320343922,1711313485443,-500.0,0.00019726,2]
[320343923,1711313485454,-500.0,0.00019726,2]
[320343924,1711313485463,-500.0,0.00019726,2]
[320343925,1711313485473,-500.0,0.00019726,2]
[320343926,1711313485483,-500.0,0.00019726,2]
[320343927,1711313485493,-500.0,0.00019726,2]
[320343928,1711313485503,-500.0,0.00019726,2]
[320343929,1711313485513,-151.0,0.00019726,2]
[320343930,1711313485523,-151.0,0.00019726,2]
[320343931,1711313485532,-500.0,0.00019726,2]
[320343932,1711313485542,-500.0,0.00019726,2]
[320343933,1711313485551,-500.0,0.00019726,2]
[320343934,1711313485560,-500.0,0.00019726,2]
[320343935,1711313485570,-534.24566462,0.00019726,2]
[320343936,1711313485580,-500.0,0.00019726,2]
[320343937,1711313485589,-500.0,0.00019726,2]
[320343938,1711313485599,-287.0232924,0.00019726,2]
[320343939,1711313485608,-500.0,0.00019726,2]
[320343940,1711313485618,-500.0,0.00019726,2]
[320343941,1711313485628,-500.0,0.00019726,2]
[320343942,1711313485638,-500.0,0.00019726,2]
[320343943,1711313485648,-500.0,0.00019726,2]
[320343944,1711313485657,-500.0,0.00019726,2]
[320343945,1711313485667,-500.0,0.00019726,2]
[320343946,1711313485676,-514.47089571,0.00019726,2]
[320343947,1711313485686,-515.39,0.00019726,2]
[320343948,1711313485696,-237.732977,0.00019726,2]
[320343949,1711313485705,-500.0,0.00019726,2]
[320343950,1711313485715,-500.0,0.00019726,2]
[320343951,1711313485724,-500.0,0.00019726,2]
[320343952,1711313485734,-515.13418349,0.00019726,2]
[320343953,1711313485744,-516.06,0.00019726,2]
[320343954,1711313485753,-500.0,0.00019726,2]
[320343955,1711313485764,-500.0,0.00019726,2]
[320343956,1711313485774,-151.0,0.00019726,2]
[320343957,1711313485783,-151.0,0.00019726,2]
[320343958,1711313485792,-500.0,0.00019726,2]
[320343959,1711313485802,-500.0,0.00019726,2]
[320343960,1711313485814,-500.0,0.00019726,2]
[320343961,1711313485823,-500.0,0.00019726,2]
[320343962,1711313485833,-810.79,0.00019726,2]
[320343963,1711313485842,-638.73,0.00019726,2]
[320343964,1711313485853,-608.74244269,0.00019726,2]
[320343965,1711313485863,-500.0,0.00019726,2]
[320343966,1711313485872,-1991.75,0.00019726,2]
[320343967,1711313485882,-500.0,0.00019726,2]
[320343968,1711313485892,-500.0,0.00019726,2]
[320343969,1711313485902,-501.56020702,0.00019726,2]
[320343970,1711313485911,-500.0,0.00019726,2]
[320343971,1711313485921,-500.0,0.00019726,2]
[320343972,1711313485930,-850.64,0.00019726,2]
[320343973,1711313485939,-500.0,0.00019726,2]
[320343974,1711313485950,-500.0,0.00019726,2]
[320343975,1711313485967,-500.0,0.00019726,2]
[320343976,1711313485979,-500.0,0.00019726,2]
[320343977,1711313485989,-500.0,0.00019726,2]
[320343978,1711313485999,-500.0,0.00019726,2]
[320343979,1711313486009,-500.0,0.00019726,2]
[320343980,1711313486019,-500.0,0.00019726,2]
[320343981,1711313486029,-500.0,0.00019726,2]
[320343982,1711313486039,-500.0,0.00019726,2]
[320343983,1711313486049,-500.0,0.00019726,2]
[320343984,1711313486059,-697.4,0.00019726,2]
[320343985,1711313486068,-500.0,0.00019726,2]
[320343986,1711313486078,-500.0,0.00019726,2]
[320343987,1711313486089,-500.0,0.00019726,2]
[320343988,1711313486100,-500.0,0.00019726,2]
[320343989,1711313486110,-500.0,0.00019726,2]
[320343990,1711313486120,-3571.32,0.00019726,2]
[320343991,1711313486131,-500.0,0.00019726,2]
[320343992,1711313486141,-160.70918617,0.00019726,2]
[320343993,1711313486151,-500.0,0.00019726,2]
[320343994,1711313486161,-500.0,0.00019726,2]
[320343995,1711313486171,-502.89045683,0.00019726,2]
[320343996,1711313486181,-501.85245863,0.00019726,2]
[320343997,1711313486191,-503.19754659,0.00019726,2]
[320343998,1711313486203,-500.0,0.00019726,2]
[320343999,1711313486212,-581.38,0.00019726,2]
[320344000,1711313486222,-500.0,0.00019726,2]
[320344001,1711313486232,-610.17,0.00019726,2]
[320344002,1711313486242,-317.95883837,0.00019726,2]
[320344003,1711313486251,-500.0,0.00019726,2]
[320344004,1711313486261,-653.97,0.00019726,2]
[320344005,1711313486270,-1247.09,0.00019726,2]
[320344006,1711313486280,-757.79,0.00019726,2]
[320344007,1711313486290,-502.73289157,0.00019726,2]
[320344008,1711313486299,-516.17659626,0.00019726,2]
[320344009,1711313486309,-500.0,0.00019726,2]
[320344010,1711313486318,-500.0,0.00019726,2]
[320344011,1711313486328,-500.0,0.00019726,2]
[320344012,1711313486337,-500.0,0.00019726,2]
[320344013,1711313486347,-1688.59,0.00019726,2]
[320344014,1711313486357,-520.04,0.00019726,2]
[320344015,1711313486367,-1426.39,0.00019726,2]
[320344016,1711313486377,-875.06,0.00019726,2]
[320344017,1711313486386,-500.0,0.00019726,2]
[320344018,1711313486396,-192.911768,0.00019726,2]
[320344019,1711313486406,-192.911768,0.00019726,2]
[320344020,1711313486417,-151.0,0.00019726,2]
[320344021,1711313486426,-500.0,0.00019726,2]
[320344022,1711313486436,-1477.16,0.00019726,2]
[320344023,1711313486446,-233.160849,0.00019726,2]
[320344024,1711313486456,-1803.61,0.00019726,2]
[320344025,1711313486465,-979.55,0.00019726,2]
[320344026,1711313486475,-504.12582971,0.00019726,2]
[320344027,1711313486484,-500.0,0.00019726,2]
[320344028,1711313486494,-278.5929884,0.00019726,2]
[320344029,1711313486504,-500.0,0.00019726,2]
[320344030,1711313486513,-500.0,0.00019726,2]
[320344031,1711313486523,-500.0,0.00019726,2]
[320344032,1711313486533,-493.88609885,0.00019726,2]
[320344033,1711313486542,-518.99,0.00019726,2]
[320344034,1711313486552,-500.0,0.00019726,2]
[320344035,1711313486562,-500.0,0.00019726,2]
[320344036,1711313486571,-222.08733814,0.00019726,2]
[320344037,1711313486581,-729.825473,0.00019726,2]
[320344038,1711313486591,-729.825473,0.00019726,2]
[320344039,1711313486601,-500.0,0.00019726,2]
[320344040,1711313486610,-729.825473,0.00019726,2]
[320344041,1711313486620,-729.825473,0.00019726,2]
[320344042,1711313486629,-500.0,0.00019726,2]
[320344043,1711313486639,-500.0,0.00019726,2]
[320344044,1711313486649,-595.0,0.00019726,2]
[320344045,1711313486659,-1307.87,0.00019726,2]
[320344046,1711313486669,-500.0,0.00019726,2]
[320344047,1711313486679,-500.0,0.00019726,2]
[320344048,1711313486689,-2422.75,0.00019726,2]
[320344049,1711313486699,-500.0,0.00019726,2]
[320344050,1711313486709,-500.0,0.00019726,2]
[320344051,1711313486719,-502.96866718,0.00019726,2]
[320344052,1711313486729,-500.0,0.00019726,2]
[320344053,1711313486739,-500.0,0.00019726,2]
[320344054,1711313486749,-500.0,0.00019726,2]
[320344055,1711313486763,-1705.81,0.00019726,2]
[320344056,1711313486773,-500.0,0.00019726,2]
[320344057,1711313486783,-500.0,0.00019726,2]
[320344058,1711313486793,-500.0,0.00019726,2]
[320344059,1711313486802,-500.0,0.00019726,2]
[320344060,1711313486812,-500.0,0.00019726,2]
[320344061,1711313486822,-500.0,0.00019726,2]
[320344062,1711313486831,-500.0,0.00019726,2]
[320344063,1711313486842,-500.0,0.00019726,2]
[320344064,1711313486853,-500.0,0.00019726,2]
[320344065,1711313486862,-587.54,0.00019726,2]
[320344066,1711313486872,-500.0,0.00019726,2]
[320344067,1711313486882,-649.04,0.00019726,2]
[320344068,1711313486891,-561.58,0.00019726,2]
[320344069,1711313486901,-500.0,0.00019726,2]
[320344070,1711313486911,-1248.37,0.00019726,2]
[320344071,1711313486920,-1029.21,0.00019726,2]
[320344072,1711313486930,-833.21,0.00019726,2]
[320344073,1711313486940,-500.0,0.00019726,2]
[320344074,1711313486950,-504.03211178,0.00019726,2]
[320344075,1711313486962,-500.0,0.00019726,2]
[320344076,1711313486972,-500.0,0.00019726,2]
[320344077,1711313486983,-500.0,0.00019726,2]
[320344078,1711313486993,-1669.34,0.00019726,2]
[320344079,1711313487004,-1344.03,0.00019726,2]
[320344080,1711313487014,-501.68430294,0.00019726,2]
[320344081,1711313487024,-500.0,0.00019726,2]
[320344082,1711313487035,-500.0,0.00019726,2]
[320344083,1711313487046,-502.6740527,0.00019726,2]
[320344084,1711313487056,-500.0,0.00019726,2]
[320344085,1711313487066,-500.0,0.00019726,2]
[320344086,1711313487076,-500.0,0.00019726,2]
[320344087,1711313487087,-1376.44,0.00019726,2]
[320344088,1711313487098,-1843.18,0.00019726,2]
[320344089,1711313487109,-477.28710508,0.00019726,2]
[320344090,1711313487119,-500.0,0.00019726,2]
[320344091,1711313487129,-557.6,0.00019726,2]
[320344092,1711313487139,-500.0,0.00019726,2]
[320344093,1711313487150,-1016.1,0.00019726,2]
[320344094,1711313487160,-500.0,0.00019726,2]
[320344095,1711313487170,-500.0,0.00019726,2]
[320344096,1711313487180,-502.54597762,0.00019726,2]
[320344097,1711313487194,-505.76,0.00019726,2]
[320344098,1711313487205,-1025.69,0.00019726,2]
[320344099,1711313487215,-192.07413411,0.00019726,2]
[320344100,1711313487226,-788.02,0.00019726,2]
[320344101,1711313487237,-500.0,0.00019726,2]
[320344102,1711313487248,-500.0,0.00019726,2]
[320344103,1711313487258,-912.85,0.00019726,2]
[320344104,1711313487269,-500.0,0.00019726,2]
[320344105,1711313487280,-500.0,0.00019726,2]
[320344106,1711313487291,-2185.58,0.00019726,2]
[320344107,1711313487301,-500.0,0.00019726,2]
[320344108,1711313487312,-500.0,0.00019726,2]
[320344109,1711313487322,-500.0,0.00019726,2]
[320344110,1711313487332,-500.0,0.00019726,2]
[320344111,1711313487343,-1407.65,0.00019726,2]
[320344112,1711313487353,-500.0,0.00019726,2]
[320344113,1711313487363,-1123.57,0.00019726,2]
[320344114,1711313487374,-500.0,0.00019726,2]
[320344115,1711313487384,-500.0,0.00019726,2]
[320344116,1711313487394,-500.0,0.00019726,2]
[320344117,1711313487405,-500.0,0.00019726,2]
[320344118,1711313487415,-500.0,0.00019726,2]
[320344119,1711313487425,-500.0,0.00019726,2]
[320344120,1711313487436,-502.06643657,0.00019726,2]
[320344121,1711313487446,-500.0,0.00019726,2]
[320344122,1711313487456,-500.0,0.00019726,2]
[320344123,1711313487467,-945.606395,0.00019726,2]
[320344124,1711313487478,-945.606395,0.00019726,2]
[320344125,1711313487489,-1891.86,0.00019726,2]
[320344126,1711313487500,-1585.97,0.00019726,2]
[320344127,1711313487510,-500.0,0.00019726,2]
[320344128,1711313487520,-500.0,0.00019726,2]
[320344129,1711313487530,-945.606395,0.00019726,2]
[320344130,1711313487540,-945.606395,0.00019726,2]
[320344131,1711313487550,-503.61074517,0.00019726,2]
[320344132,1711313487560,-500.0,0.00019726,2]
[320344133,1711313487571,-500.0,0.00019726,2]
[320344134,1711313487581,-2086.53,0.00019726,2]
[320344135,1711313487592,-1035.86,0.00019726,2]
[320344136,1711313487602,-796.32,0.00019726,2]
[320344137,1711313487613,-500.0,0.00019726,2]
[320344138,1711313487623,-500.0,0.00019726,2]
[320344139,1711313487634,-748.26,0.00019726,2]
[320344140,1711313487644,-500.0,0.00019726,2]
[320344141,1711313487654,-1259.95,0.00019726,2]
[320344142,1711313487664,-505.27919826,0.00019726,2]
[320344143,1711313487674,-1190.777118,0.00019726,2]
[320344144,1711313487685,-151.0,0.00019726,2]
[320344145,1711313487696,-1190.777118,0.00019726,2]
[320344146,1711313487706,-285.372071,0.00019726,2]
[320344147,1711313487715,-500.0,0.00019726,2]
[320344148,1711313487726,-504.11354538,0.00019726,2]
[320344149,1711313487736,-599.28,0.00019726,2]
[320344150,1711313487746,-1160.91,0.00019726,2]
[320344151,1711313487757,-500.0,0.00019726,2]
[320344152,1711313487770,-1190.777118,0.00019726,2]
[320344153,1711313487780,-500.0,0.00019726,2]
[320344154,1711313487790,-500.0,0.00019726,2]
[320344155,1711313487800,-1190.777118,0.00019726,2]
[320344156,1711313487811,-500.0,0.00019726,2]
[320344157,1711313487823,-500.0,0.00019726,2]
[320344158,1711313487833,-500.0,0.00019726,2]
[320344159,1711313487846,-1392.76,0.00019726,2]
[320344160,1711313487857,-500.0,0.00019726,2]
[320344161,1711313487868,-500.0,0.00019726,2]
[320344162,1711313487879,-546.15,0.00019726,2]
[320344163,1711313487889,-757.48,0.00019726,2]
[320344164,1711313487899,-502.52146009,0.00019726,2]
[320344165,1711313487909,-500.0,0.00019726,2]
[320344166,1711313487919,-151.0,0.00019726,2]
[320344167,1711313487930,-151.0,0.00019726,2]
[320344168,1711313487942,-500.0,0.00019726,2]
[320344169,1711313487953,-500.0,0.00019726,2]
[320344170,1711313487967,-500.0,0.00019726,2]
[320344171,1711313487978,-1354.46,0.00019726,2]
[320344172,1711313487989,-507.90014466,0.00019726,2]
[320344173,1711313488000,-500.0,0.00019726,2]
[320344174,1711313488011,-500.0,0.00019726,2]
[320344175,1711313488022,-1467.8,0.00019726,2]
[320344176,1711313488032,-500.0,0.00019726,2]
[320344177,1711313488043,-501.99103616,0.00019726,2]
[320344178,1711313488054,-151.0,0.00019726,2]
[320344179,1711313488065,-151.0,0.00019726,2]
[320344180,1711313488075,-500.0,0.00019726,2]
[320344181,1711313488085,-500.0,0.00019726,2]
[320344182,1711313488096,-500.0,0.00019726,2]
[320344183,1711313488106,-272.53679663,0.00019726,2]
[320344184,1711313488116,-1230.94,0.00019726,2]
[320344185,1711313488127,-500.0,0.00019726,2]
[320344186,1711313488137,-500.0,0.00019726,2]
[320344187,1711313488148,-500.0,0.00019726,2]
[320344188,1711313488158,-500.0,0.00019726,2]
[320344189,1711313488170,-599.9441973,0.00019726,2]
[320344190,1711313488181,-500.0,0.00019726,2]
[320344191,1711313488192,-500.0,0.00019726,2]
[320344192,1711313488203,-500.0,0.00019726,2]
[320344193,1711313488214,-500.0,0.00019726,2]
[320344194,1711313488225,-1499.66,0.00019726,2]
[320344195,1711313488236,-845.92,0.00019726,2]
[320344196,1711313488246,-500.0,0.00019726,2]
[320344197,1711313488261,-500.0,0.00019726,2]
[320344198,1711313488272,-500.0,0.00019726,2]
[320344199,1711313488283,-242.533313,0.00019726,2]
[320344200,1711313488294,-500.0,0.00019726,2]
[320344201,1711313488305,-500.0,0.00019726,2]
[320344202,1711313488316,-500.0,0.00019726,2]
[320344203,1711313488326,-2316.17,0.00019726,2]
[320344204,1711313488337,-1402.17,0.00019726,2]
[320344205,1711313488348,-500.0,0.00019726,2]
[320344206,1711313488358,-500.0,0.00019726,2]
[320344207,1711313488369,-151.0,0.00019726,2]
[320344208,1711313488380,-151.0,0.00019726,2]
[320344209,1711313488390,-500.0,0.00019726,2]
[320344210,1711313488402,-500.0,0.00019726,2]
[320344211,1711313488412,-500.0,0.00019726,2]
[320344212,1711313488423,-571.59,0.00019726,2]
[320344213,1711313488433,-500.0,0.00019726,2]
[320344214,1711313488444,-500.0,0.00019726,2]
[320344215,1711313488454,-500.0,0.00019726,2]
[320344216,1711313488465,-509.11148797,0.00019726,2]
[320344217,1711313488476,-2597.2,0.00019726,2]
[320344218,1711313488486,-655.48,0.00019726,2]
[320344219,1711313488496,-500.0,0.00019726,2]
[320344220,1711313488506,-500.0,0.00019726,2]
[320344221,1711313488516,-507.5581677,0.00019726,2]
[320344222,1711313488526,-500.0,0.00019726,2]
[320344223,1711313488536,-503.56075445,0.00019726,2]
[320344224,1711313488546,-151.0,0.00019726,2]
[320344225,1711313488557,-1296.04,0.00019726,2]
[320344226,1711313488567,-500.0,0.00019726,2]
[320344227,1711313488577,-502.99877578,0.00019726,2]
[320344228,1711313488588,-500.0,0.00019726,2]
[320344229,1711313488598,-1067.35,0.00019726,2]
[320344230,1711313488608,-500.0,0.00019726,2]
[320344231,1711313488620,-500.0,0.00019726,2]
[320344232,1711313488632,-500.0,0.00019726,2]
[320344233,1711313488643,-1760.79,0.00019726,2]
[320344234,1711313488653,-500.0,0.00019726,2]
[320344235,1711313488664,-500.0,0.00019726,2]
[320344236,1711313488675,-971.0,0.00019726,2]
[320344237,1711313488685,-500.0,0.00019726,2]
[320344238,1711313488696,-500.0,0.00019726,2]
[320344239,1711313488707,-625.4521662,0.00019726,2]
[320344240,1711313488718,-500.0,0.00019726,2]
[320344241,1711313488728,-500.0,0.00019726,2]
[320344242,1711313488739,-564.10631401,0.00019726,2]
[320344243,1711313488749,-500.0,0.00019726,2]
[320344244,1711313488759,-500.0,0.00019726,2]
[320344245,1711313488773,-500.0,0.00019726,2]
[320344246,1711313488782,-1327.49,0.00019726,2]
[320344247,1711313488792,-500.0,0.00019726,2]
[320344248,1711313488802,-500.0,0.00019726,2]
[320344249,1711313488813,-500.0,0.00019726,2]
[320344250,1711313488823,-500.0,0.00019726,2]
[320344251,1711313488833,-1937.23,0.00019726,2]
[320344252,1711313488844,-1424.9,0.00019726,2]
[320344253,1711313488854,-453.22277354,0.00019726,2]
[320344254,1711313488864,-500.0,0.00019726,2]
[320344255,1711313488874,-500.0,0.00019726,2]
[320344256,1711313488885,-500.0,0.00019726,2]
[320344257,1711313488895,-500.0,0.00019726,2]
[320344258,1711313488905,-640.17,0.00019726,2]
[320344259,1711313488915,-500.0,0.00019726,2]
[320344260,1711313488925,-500.0,0.00019726,2]
[320344261,1711313488937,-568.37,0.00019726,2]
[320344262,1711313488949,-503.51232151,0.00019726,2]
[320344263,1711313488960,-500.0,0.00019726,2]
[320344264,1711313488970,-500.0,0.00019726,2]
[320344265,1711313488981,-500.0,0.00019726,2]
[320344266,1711313488992,-2126.67,0.00019726,2]